fUST/lending_fUST_20241017
["ID","MTS","AMOUNT","RATE_DAILY","PERIOD"]
[340386438,1729157093602,-1458.33,0.00043287,60]
[340386439,1729157093642,-762.66,0.00043287,60]
[340386440,1729157093675,-500.0,0.00043287,60]
[340386441,1729157093707,-500.0,0.00043287,60]
[340386442,1729157093739,-650.71,0.00043287,60]
[340386443,1729157093771,-835.54,0.00043287,60]
[340386444,1729157094104,-1182.57,0.00043287,60]
[340386445,1729157094141,-500.0,0.00043287,60]
[340386446,1729157094174,-898.16,0.00043287,60]
[340386447,1729157094210,-500.0,0.00043287,60]
[340386448,1729157094243,-759.22,0.00043287,60]
[340386449,1729157094278,-500.0,0.00043287,60]
[340386450,1729157094312,-500.0,0.00043287,60]
[340386451,1729157094346,-829.97,0.00043287,120]
[340386452,1729157094378,-500.0,0.00043287,60]
[340386453,1729157094412,-2230.79,0.00043287,60]
[340386454,1729157094444,-500.0,0.00043287,60]
[340386455,1729157094477,-533.55028426,0.00043287,60]
[340386456,1729157094508,-500.0,0.00043287,60]
[340386457,1729157094540,-500.0,0.00043287,60]
[340386458,1729157094571,-500.0,0.00043287,60]
[340386459,1729157094606,-512.86,0.00043287,60]
[340386460,1729157094637,-1055.28,0.00043287,60]
[340386461,1729157094670,-861.18,0.00043287,60]
[340386462,1729157094701,-905.29,0.00043287,60]
[340386463,1729157094732,-500.0,0.00043287,60]
[340386464,1729157094764,-1174.01,0.00043287,60]
[340386465,1729157094795,-522.36,0.00043287,60]
[340386466,1729157094825,-593.86,0.00043287,60]
[340386467,1729157094859,-4800.3,0.00043287,60]
[340386468,1729157094892,-548.64,0.00043287,60]
[340386469,1729157094926,-5161.34,0.00043287,60]
[340386470,1729157094960,-971.22,0.00043287,60]
[340386471,1729157094995,-500.0,0.00043287,60]
[340386472,1729157095028,-1038.67,0.00043287,60]
[340386473,1729157095061,-500.0,0.00043287,60]
[340386474,1729157095096,-1088.09,0.00043287,60]
[340386475,1729157095130,-542.03507922,0.00043287,60]
[340386476,1729157095161,-2534.2,0.00043287,60]
[340386477,1729157095196,-966.99,0.00043287,60]
[340386478,1729157095231,-876.41,0.00043287,60]
[340386479,1729157095264,-500.0,0.00043287,60]
[340386480,1729157095296,-3258.44,0.00043287,60]
[340386481,1729157095328,-500.0,0.00043287,60]
[340386482,1729157095359,-500.0,0.00043287,60]
[340386483,1729157095390,-500.0,0.00043287,60]
[340386484,1729157095422,-2603.18,0.00043287,60]
[340386485,1729157095455,-1334.81,0.00043287,60]
[340386486,1729157095486,-186.39155948,0.00043287,60]
[340386487,1729157095516,-988.07,0.00043287,60]
[340386488,1729157095547,-746.44,0.00043287,60]
[340386489,1729157095599,-782.02,0.00043287,60]
[340386490,1729157095657,-500.0,0.00043287,60]
[340386491,1729157095719,-500.0,0.00043287,60]
[340386492,1729157095771,-500.0,0.00043287,60]
[340386493,1729157095828,-500.0,0.00043287,60]
[340386494,1729157095882,-564.89446149,0.00043287,60]
[340386495,1729157095935,-500.0,0.00043287,60]
[340386496,1729157095988,-500.0,0.00043287,60]
[340386497,1729157096040,-1159.47,0.00043287,60]
[340386498,1729157096103,-862.09,0.00043287,60]
[340386499,1729157096157,-500.0,0.00043287,60]
[340386500,1729157096213,-980.67,0.00043287,60]
[340386501,1729157096264,-581.12,0.00043287,60]
[340386502,1729157096318,-462.48,0.00043287,60]
[340386503,1729157096373,-563.32115521,0.00043287,60]
[340386504,1729157096432,-789.83,0.00043287,60]
[340386505,1729157096477,-828.72,0.00043287,60]
[340386506,1729157096513,-500.0,0.00043287,60]
[340386507,1729157096551,-1003.18,0.00043287,60]
[340386508,1729157096587,-627.67599066,0.00043287,60]
[340386509,1729157096624,-701.04,0.00043287,60]
[340386510,1729157096666,-549.04625693,0.00043287,60]
[340386511,1729157096704,-1357.32,0.00043287,60]
[340386512,1729157096738,-3000.0,0.00043287,60]
[340386513,1729157096771,-500.0,0.00043287,60]
[340386514,1729157096803,-1167.08,0.00043287,60]
[340386515,1729157096836,-500.0,0.00043287,60]
[340386516,1729157096869,-548.75476765,0.00043287,60]
[340386517,1729157096901,-500.0,0.00043287,60]
[340386518,1729157096935,-635.34,0.00043287,60]
[340386519,1729157096967,-699.46,0.00043287,60]
[340386520,1729157097000,-500.0,0.00043287,60]
[340386521,1729157097033,-504.08,0.00043287,60]
[340386522,1729157097066,-892.38,0.00043287,60]
[340386523,1729157097099,-958.3,0.00043287,60]
[340386524,1729157097132,-500.0,0.00043287,60]
[340386525,1729157097165,-500.0,0.00043287,60]
[340386526,1729157097199,-854.83,0.00043287,60]
[340386527,1729157097232,-500.0,0.00043287,60]
[340386528,1729157097265,-500.0,0.00043287,60]
[340386529,1729157097298,-955.25,0.00043287,60]
[340386530,1729157097333,-355.72019821,0.00043287,60]
[340386531,1729157097367,-500.0,0.00043287,60]
[340386532,1729157097400,-1247.53,0.00043287,60]
[340386533,1729157097434,-750.89,0.00043287,60]
[340386534,1729157097467,-500.0,0.00043287,60]
[340386535,1729157098102,-828.59,0.00043287,60]
[340386536,1729157098177,-1164.53,0.00043287,60]
[340386537,1729157098216,-588.42,0.00043287,60]
[340386538,1729157098252,-231.85270885,0.00043287,60]
[340386539,1729157098288,-1967.01,0.00043287,60]
[340386540,1729157098321,-500.0,0.00043287,60]
[340386541,1729157098354,-943.8,0.00043287,60]
[340386542,1729157098386,-500.0,0.00043287,60]
[340386543,1729157098421,-1847.58,0.00043287,60]
[340386544,1729157098453,-1379.05,0.00043287,60]
[340386545,1729157098486,-500.0,0.00043287,60]
[340386546,1729157098519,-1143.49,0.00043287,60]
[340386547,1729157098551,-852.68,0.00043287,60]
[340386548,1729157098583,-500.0,0.00043287,60]
[340386549,1729157098617,-1754.82,0.00043287,60]
[340386550,1729157098649,-500.0,0.00043287,60]
[340386551,1729157098684,-500.0,0.00043287,60]
[340386552,1729157098719,-500.0,0.00043287,60]
[340386553,1729157098752,-16244.07,0.00043287,60]
[340386554,1729157098785,-574.08,0.00043287,60]
[340386555,1729157098818,-527.22,0.00043287,60]
[340386556,1729157098851,-589.88,0.00043287,60]
[340386557,1729157098885,-1177.7,0.00043287,60]
[340386558,1729157098918,-515.84481902,0.00043287,60]
[340386559,1729157098952,-1002.78,0.00043287,60]
[340386560,1729157098984,-500.0,0.00043287,60]
[340386561,1729157099016,-796.65,0.00043287,60]
[340386562,1729157099047,-767.61,0.00043287,60]
[340386563,1729157099080,-500.0,0.00043287,60]
[340386564,1729157099117,-502.32,0.00043287,60]
[340386565,1729157099149,-1996.04,0.00043287,60]
[340386566,1729157099181,-668.0,0.00043287,60]
[340386567,1729157099219,-63092.08692324,0.00043443,90]
[340386568,1729157099253,-3000.0,0.000435,120]
[340386569,1729157099287,-500.0,0.00043561,60]
[340386570,1729157099322,-500.0,0.00043561,60]
[340386571,1729157099358,-500.0,0.00043561,60]
[340386572,1729157099391,-1327.31,0.00043561,60]
[340386573,1729157099423,-597.84501564,0.00043561,60]
[340386574,1729157099455,-500.0,0.00043561,60]
[340386575,1729157099486,-500.0,0.00043561,60]
[340386576,1729157099519,-500.0,0.00043561,60]
[340386577,1729157099550,-927.2,0.00043561,60]
[340386578,1729157099582,-500.0,0.00043561,60]
[340386579,1729157099615,-500.0,0.00043561,60]
[340386580,1729157099647,-500.0,0.00043561,60]
[340386581,1729157099678,-1003.98,0.00043561,60]
[340386582,1729157099709,-590.2,0.00043561,60]
[340386583,1729157099742,-500.0,0.00043561,60]
[340386584,1729157099774,-500.0,0.00043561,60]
[340386585,1729157099806,-500.0,0.00043561,60]
[340386586,1729157099841,-979.17,0.00043561,60]
[340386587,1729157099874,-783.88,0.00043561,60]
[340386588,1729157099906,-630.62,0.00043561,60]
[340386589,1729157099941,-1089.03,0.00043561,60]
[340386590,1729157099975,-566.05,0.00043561,60]
[340386591,1729157100005,-500.0,0.00043561,60]
[340386592,1729157100038,-575.83,0.00043561,60]
[340386593,1729157100070,-500.0,0.00043561,60]
[340386594,1729157100104,-2442.96,0.00043561,60]
[340386595,1729157100138,-2561.43,0.00043561,60]
[340386596,1729157100173,-827.35,0.00043561,60]
[340386597,1729157100206,-500.0,0.00043561,60]
[340386598,1729157100242,-500.0,0.00043561,60]
[340386599,1729157100277,-500.0,0.00043561,60]
[340386600,1729157100311,-1109.25,0.00043561,60]
[340386601,1729157100344,-500.0,0.00043561,60]
[340386602,1729157100377,-866.24,0.00043561,60]
[340386603,1729157100409,-500.0,0.00043561,60]
[340386604,1729157100444,-1240.33,0.00043561,60]
[340386605,1729157100477,-500.0,0.00043561,60]
[340386606,1729157100508,-500.0,0.00043561,60]
[340386607,1729157100539,-500.0,0.00043561,60]
[340386608,1729157100571,-500.0,0.00043561,60]
[340386609,1729157100602,-500.0,0.00043561,60]
[340386610,1729157100637,-500.0,0.00043561,60]
[340386611,1729157100668,-973.81,0.00043561,60]
[340386612,1729157100700,-1458.33,0.00043561,60]
[340386613,1729157100732,-500.0,0.00043561,60]
[340386614,1729157100763,-762.66,0.00043561,60]
[340386615,1729157100794,-500.0,0.00043561,60]
[340386616,1729157100826,-650.71,0.00043561,60]
[340386617,1729157100858,-835.54,0.00043561,60]
[340386618,1729157100889,-1182.57,0.00043561,60]
[340386619,1729157100923,-500.0,0.00043561,60]
[340386620,1729157100955,-898.16,0.00043561,60]
[340386621,1729157100988,-500.0,0.00043561,60]
[340386622,1729157101019,-759.22,0.00043561,60]
[340386623,1729157101052,-500.0,0.00043561,60]
[340386624,1729157101085,-500.0,0.00043561,60]
[340386625,1729157101121,-829.97,0.00043561,120]
[340386626,1729157101155,-500.0,0.00043561,60]
[340386627,1729157101189,-2230.79,0.00043561,60]
[340386628,1729157101221,-500.0,0.00043561,60]
[340386629,1729157101256,-374.7700348,0.00043561,60]
[340386630,1729157101419,-500.0,0.00043561,60]
[340386631,1729157101451,-500.0,0.00043561,60]
[340386632,1729157101483,-512.86,0.00043561,60]
[340386633,1729157101514,-1055.28,0.00043561,60]
[340386634,1729157101544,-861.18,0.00043561,60]
[340386635,1729157101575,-905.29,0.00043561,60]
[340386636,1729157101605,-500.0,0.00043561,60]
[340386637,1729157101637,-1174.01,0.00043561,60]
[340386638,1729157101668,-522.36,0.00043561,60]
[340386639,1729157101699,-593.86,0.00043561,60]
[340386640,1729157101731,-4800.3,0.00043561,60]
[340386641,1729157101764,-548.64,0.00043561,60]
[340386642,1729157101796,-5161.34,0.00043561,60]
[340386643,1729157101830,-971.22,0.00043561,60]
[340386644,1729157101861,-500.0,0.00043561,60]
[340386645,1729157101893,-1038.67,0.00043561,60]
[340386646,1729157101923,-500.0,0.00043561,60]
[340386647,1729157101957,-1088.09,0.00043561,60]
[340386648,1729157101991,-2534.2,0.00043561,60]
[340386649,1729157102023,-966.99,0.00043561,60]
[340386650,1729157102068,-876.41,0.00043561,60]
[340386651,1729157102103,-500.0,0.00043561,60]
[340386652,1729157102137,-3258.44,0.00043561,60]
[340386653,1729157102170,-500.0,0.00043561,60]
[340386654,1729157102202,-500.0,0.00043561,60]
[340386655,1729157102238,-500.0,0.00043561,60]
[340386656,1729157102271,-2603.18,0.00043561,60]
[340386657,1729157102304,-1334.81,0.00043561,60]
[340386658,1729157102343,-988.07,0.00043561,60]
[340386659,1729157102376,-746.44,0.00043561,60]
[340386660,1729157102408,-782.02,0.00043561,60]
[340386661,1729157102441,-500.0,0.00043561,60]
[340386662,1729157102475,-500.0,0.00043561,60]
[340386663,1729157102507,-500.0,0.00043561,60]
[340386664,1729157102540,-553.77999656,0.00043561,60]
[340386665,1729157102573,-500.0,0.00043561,60]
[340386666,1729157102605,-500.0,0.00043561,60]
[340386667,1729157102636,-1159.47,0.00043561,60]
[340386668,1729157102669,-862.09,0.00043561,60]
[340386669,1729157102701,-500.0,0.00043561,60]
[340386670,1729157102734,-980.67,0.00043561,60]
[340386671,1729157102766,-581.12,0.00043561,60]
[340386672,1729157102798,-789.83,0.00043561,60]
[340386673,1729157102831,-828.72,0.00043561,60]
[340386674,1729157102863,-500.0,0.00043561,60]
[340386675,1729157102898,-1003.18,0.00043561,60]
[340386676,1729157102936,-701.04,0.00043561,60]
[340386677,1729157102971,-1357.32,0.00043561,60]
[340386678,1729157103004,-3000.0,0.00043561,60]
[340386679,1729157103057,-463.90949552,0.00043561,60]
[340386680,1729157103094,-1167.08,0.00043561,60]
[340386681,1729157103135,-500.0,0.00043561,60]
[340386682,1729157103174,-500.0,0.00043561,60]
[340386683,1729157103224,-635.34,0.00043561,60]
[340386684,1729157103275,-699.46,0.00043561,60]
[340386685,1729157103318,-500.0,0.00043561,60]
[340386686,1729157103361,-504.08,0.00043561,60]
[340386687,1729157103401,-892.38,0.00043561,60]
[340386688,1729157103442,-958.3,0.00043561,60]
[340386689,1729157103483,-611.06526588,0.00043561,60]
[340386690,1729157103523,-500.0,0.00043561,60]
[340386691,1729157103563,-854.83,0.00043561,60]
[340386692,1729157103604,-500.0,0.00043561,60]
[340386693,1729157103643,-163.54242206,0.00043561,60]
[340386694,1729157103683,-955.25,0.00043561,60]
[340386695,1729157103723,-500.0,0.00043561,60]
[340386696,1729157103760,-1247.53,0.00043561,60]
[340386697,1729157103800,-750.89,0.00043561,60]
[340386698,1729157103839,-571.01238171,0.00043561,60]
[340386699,1729157103877,-828.59,0.00043561,60]
[340386700,1729157103919,-1164.53,0.00043561,60]
[340386701,1729157103963,-588.42,0.00043561,60]
[340386702,1729157104005,-1967.01,0.00043561,60]
[340386703,1729157104046,-500.0,0.00043561,60]
[340386704,1729157104089,-943.8,0.00043561,60]
[340386705,1729157104133,-500.0,0.00043561,60]
[340386706,1729157104176,-1847.58,0.00043561,60]
[340386707,1729157104220,-1379.05,0.00043561,60]
[340386708,1729157104264,-500.0,0.00043561,60]
[340386709,1729157104307,-1143.49,0.00043561,60]
[340386710,1729157104349,-852.68,0.00043561,60]
[340386711,1729157104391,-502.09498684,0.00043561,60]
[340386712,1729157104435,-1754.82,0.00043561,60]
[340386713,1729157104476,-500.0,0.00043561,60]
[340386714,1729157104515,-500.0,0.00043561,60]
[340386715,1729157104557,-613.1979134,0.00043561,60]
[340386716,1729157104599,-16244.07,0.00043561,60]
[340386717,1729157104646,-574.08,0.00043561,60]
[340386718,1729157104699,-527.22,0.00043561,60]
[340386719,1729157104751,-589.88,0.00043561,60]
[340386720,1729157104790,-1177.7,0.00043561,60]
[340386721,1729157104858,-1002.78,0.00043561,60]
[340386722,1729157104899,-500.0,0.00043561,60]
[340386723,1729157104950,-796.65,0.00043561,60]
[340386724,1729157105027,-767.61,0.00043561,60]
[340386725,1729157105073,-500.0,0.00043561,60]
[340386726,1729157105138,-502.32,0.00043561,60]
[340386727,1729157105178,-1996.04,0.00043561,60]
[340386728,1729157105217,-6763.37404187,0.00043724,60]
[340386729,1729157105256,-635.47779934,0.00043835,60]
[340386730,1729157105294,-500.0,0.00043835,60]
[340386731,1729157105333,-500.0,0.00043835,60]
[340386732,1729157105372,-1327.31,0.00043835,60]
[340386733,1729157105410,-500.0,0.00043835,60]
[340386734,1729157105604,-500.0,0.00043835,60]
[340386735,1729157105648,-500.0,0.00043835,60]
[340386736,1729157105691,-927.2,0.00043835,60]
[340386737,1729157105733,-500.0,0.00043835,60]
[340386738,1729157105779,-500.0,0.00043835,60]
[340386739,1729157105822,-500.0,0.00043835,60]
[340386740,1729157105865,-1003.98,0.00043835,60]
[340386741,1729157105908,-590.2,0.00043835,60]
[340386742,1729157105951,-500.0,0.00043835,60]
[340386743,1729157105995,-500.0,0.00043835,60]
[340386744,1729157106036,-500.0,0.00043835,60]
[340386745,1729157106078,-979.17,0.00043835,60]
[340386746,1729157106122,-783.88,0.00043835,60]
[340386747,1729157106164,-630.62,0.00043835,60]
[340386748,1729157106207,-1089.03,0.00043835,60]
[340386749,1729157106247,-566.05,0.00043835,60]
[340386750,1729157106286,-500.0,0.00043835,60]
[340386751,1729157106327,-575.83,0.00043835,60]
[340386752,1729157106366,-2500.0,0.00043835,120]
[340386753,1729157106404,-500.0,0.00043835,60]
[340386754,1729157106444,-2442.96,0.00043835,60]
[340386755,1729157106483,-2561.43,0.00043835,60]
[340386756,1729157106523,-827.35,0.00043835,60]
[340386757,1729157106563,-500.0,0.00043835,60]
[340386758,1729157106602,-500.0,0.00043835,60]
[340386759,1729157106640,-500.0,0.00043835,60]
[340386760,1729157106680,-1109.25,0.00043835,60]
[340386761,1729157106719,-510.14316814,0.00043835,60]
[340386762,1729157106759,-866.24,0.00043835,60]
[340386763,1729157106798,-500.0,0.00043835,60]
[340386764,1729157106836,-1240.33,0.00043835,60]
[340386765,1729157106875,-500.0,0.00043835,60]
[340386766,1729157106915,-500.0,0.00043835,60]
[340386767,1729157106955,-500.0,0.00043835,60]
[340386768,1729157106994,-472.9687622,0.00043835,60]
[340386769,1729157107034,-500.0,0.00043835,60]
[340386770,1729157107075,-500.0,0.00043835,60]
[340386771,1729157107115,-973.81,0.00043835,60]
[340386772,1729157107157,-1458.33,0.00043835,60]
[340386773,1729157107199,-500.0,0.00043835,60]
[340386774,1729157107241,-762.66,0.00043835,60]
[340386775,1729157107283,-191.10216815,0.00043835,60]
[340386776,1729157107322,-650.71,0.00043835,60]
[340386777,1729157107364,-835.54,0.00043835,60]
[340386778,1729157107403,-1182.57,0.00043835,60]
[340386779,1729157107462,-500.0,0.00043835,60]
[340386780,1729157107522,-898.16,0.00043835,60]
[340386781,1729157107576,-272.88069746,0.00043835,60]
[340386782,1729157107655,-759.22,0.00043835,60]
[340386783,1729157107743,-500.0,0.00043835,60]
[340386784,1729157107824,-829.97,0.00043835,120]
[340386785,1729157107890,-500.0,0.00043835,60]
[340386786,1729157107956,-2230.79,0.00043835,60]
[340386788,1729157108019,-500.0,0.00043835,60]
[340386789,1729157108087,-500.0,0.00043835,60]
[340386790,1729157108160,-500.0,0.00043835,60]
[340386791,1729157108218,-512.86,0.00043835,60]
[340386792,1729157108259,-1055.28,0.00043835,60]
[340386793,1729157108298,-861.18,0.00043835,60]
[340386794,1729157108336,-905.29,0.00043835,60]
[340386795,1729157108375,-500.0,0.00043835,60]
[340386796,1729157108415,-522.36,0.00043835,60]
[340386797,1729157108457,-1174.01,0.00043835,60]
[340386798,1729157108497,-593.86,0.00043835,60]
[340386799,1729157108537,-4800.3,0.00043835,60]
[340386800,1729157108577,-548.64,0.00043835,60]
[340386801,1729157108616,-5161.34,0.00043835,60]
[340386802,1729157108662,-971.22,0.00043835,60]
[340386803,1729157108701,-500.0,0.00043835,60]
[340386804,1729157108739,-1038.67,0.00043835,60]
[340386805,1729157108778,-279.27002222,0.00043835,60]
[340386806,1729157108819,-1088.09,0.00043835,60]
[340386807,1729157108859,-2534.2,0.00043835,60]
[340386808,1729157108899,-966.99,0.00043835,60]
[340386809,1729157108942,-876.41,0.00043835,60]
[340386810,1729157108980,-339.66537165,0.00043835,60]
[340386811,1729157109019,-3258.44,0.00043835,60]
[340386812,1729157109059,-319.83591709,0.00043835,60]
[340386813,1729157109097,-500.0,0.00043835,60]
[340386814,1729157109137,-500.0,0.00043835,60]
[340386815,1729157109176,-2603.18,0.00043835,60]
[340386816,1729157109216,-1334.81,0.00043835,60]
[340386817,1729157109257,-1000.0,0.00043835,120]
[340386818,1729157109297,-1000.0,0.00043835,120]
[340386819,1729157109337,-1000.0,0.00043835,120]
[340386820,1729157109374,-1000.0,0.00043835,120]
[340386821,1729157109417,-1000.0,0.00043835,120]
[340386822,1729157109458,-1000.0,0.00043835,120]
[340386823,1729157109497,-1000.0,0.00043835,120]
[340386824,1729157109536,-1000.0,0.00043835,120]
[340386825,1729157109574,-1000.0,0.00043835,120]
[340386826,1729157109613,-1000.0,0.00043835,120]
[340386827,1729157109652,-1000.0,0.00043835,120]
[340386828,1729157109691,-988.07,0.00043835,60]
[340386829,1729157109729,-746.44,0.00043835,60]
[340386830,1729157109769,-782.02,0.00043835,60]
[340386831,1729157109807,-500.0,0.00043835,60]
[340386832,1729157109846,-521.39974842,0.00043835,60]
[340386833,1729157109884,-599.9061261,0.00043835,60]
[340386834,1729157109923,-500.0,0.00043835,60]
[340386835,1729157109963,-500.0,0.00043835,60]
[340386836,1729157110002,-1159.47,0.00043835,60]
[340386837,1729157110039,-500.0,0.00043835,60]
[340386838,1729157110077,-862.09,0.00043835,60]
[340386839,1729157110299,-980.67,0.00043835,60]
[340386840,1729157110337,-581.12,0.00043835,60]
[340386841,1729157110379,-789.83,0.00043835,60]
[340386842,1729157110428,-828.72,0.00043835,60]
[340386843,1729157110467,-500.0,0.00043835,60]
[340386844,1729157110506,-1003.18,0.00043835,60]
[340386845,1729157110545,-701.04,0.00043835,60]
[340386846,1729157110584,-1357.32,0.00043835,60]
[340386847,1729157110621,-450.34293144,0.00043835,60]
[340386848,1729157110657,-1167.08,0.00043835,60]
[340386849,1729157110696,-500.0,0.00043835,60]
[340386850,1729157110734,-221.83763343,0.00043835,60]
[340386851,1729157110770,-635.34,0.00043835,60]
[340386852,1729157110806,-494.14908732,0.00043835,60]
[340386853,1729157110842,-699.46,0.00043835,60]
[340386854,1729157110879,-504.08,0.00043835,60]
[340386855,1729157110916,-892.38,0.00043835,60]
[340386856,1729157110954,-958.3,0.00043835,60]
[340386857,1729157110995,-500.0,0.00043835,60]
[340386858,1729157111032,-854.83,0.00043835,60]
[340386859,1729157111068,-500.0,0.00043835,60]
[340386860,1729157111104,-955.25,0.00043835,60]
[340386861,1729157111144,-500.0,0.00043835,60]
[340386862,1729157111182,-1247.53,0.00043835,60]
[340386863,1729157111223,-750.89,0.00043835,60]
[340386864,1729157111266,-828.59,0.00043835,60]
[340386865,1729157111304,-1164.53,0.00043835,60]
[340386866,1729157111341,-588.42,0.00043835,60]
[340386867,1729157111380,-1967.01,0.00043835,60]
[340386868,1729157111417,-500.0,0.00043835,60]
[340386869,1729157111456,-943.8,0.00043835,60]
[340386870,1729157111495,-500.0,0.00043835,60]
[340386871,1729157111532,-1847.58,0.00043835,60]
[340386872,1729157111571,-1379.05,0.00043835,60]
[340386873,1729157111608,-500.0,0.00043835,120]
[340386874,1729157111645,-500.0,0.00043835,60]
[340386875,1729157111685,-500.0,0.00043835,120]
[340386876,1729157111725,-500.0,0.00043835,120]
[340386877,1729157111765,-500.0,0.00043835,120]
[340386878,1729157111803,-500.0,0.00043835,120]
[340386879,1729157111841,-1143.49,0.00043835,60]
[340386880,1729157111880,-852.68,0.00043835,60]
[340386881,1729157111919,-500.0,0.00043835,120]
[340386882,1729157111961,-500.0,0.00043835,120]
[340386883,1729157112001,-614.75690212,0.00043835,120]
[340386884,1729157112044,-1754.82,0.00043835,60]
[340386885,1729157112082,-500.0,0.00043835,60]
[340386886,1729157112123,-500.0,0.00043835,60]
[340386887,1729157112166,-16244.07,0.00043835,60]
[340386888,1729157112206,-574.08,0.00043835,60]
[340386889,1729157112247,-527.22,0.00043835,60]
[340386890,1729157112286,-589.88,0.00043835,60]
[340386891,1729157112324,-1177.7,0.00043835,60]
[340386892,1729157112362,-1002.78,0.00043835,60]
[340386893,1729157112403,-186.20216028,0.00043835,60]
[340386894,1729157112443,-796.65,0.00043835,60]
[340386895,1729157112481,-767.61,0.00043835,60]
[340386896,1729157112519,-644.52485113,0.00043835,60]
[340386897,1729157112557,-502.32,0.00043835,60]
[340386898,1729157112594,-1996.04,0.00043835,60]
[340386899,1729157112632,-19483.74579584,0.00044,120]
[340386900,1729157136343,-558.03783459,0.00041095,60]
[340386901,1729157136385,-500.0,0.00041095,60]
[340386902,1729157136424,-500.0,0.00041095,60]
[340386903,1729157136466,-909.04,0.00041095,60]
[340386904,1729157136505,-1630.73,0.00041095,60]
[340386905,1729157136544,-4082.49,0.00041095,60]
[340386906,1729157136581,-500.0,0.00041095,60]
[340386907,1729157136619,-500.0,0.00041095,60]
[340386908,1729157136656,-500.0,0.00041095,60]
[340386909,1729157136693,-500.0,0.00041095,60]
[340386910,1729157136730,-500.0,0.00041095,60]
[340386911,1729157136766,-858.78,0.00041095,60]
[340386912,1729157136802,-1295.63,0.00041095,60]
[340386913,1729157136839,-509.71838133,0.00041095,60]
[340386914,1729157136875,-553.21576727,0.00041095,60]
[340386915,1729157136912,-3847.73,0.00041095,60]
[340386916,1729157136950,-500.0,0.00041095,60]
[340386917,1729157136988,-1406.05,0.00041095,60]
[340386918,1729157137026,-500.0,0.00041095,60]
[340386919,1729157137063,-1527.44,0.00041095,60]
[340386920,1729157137099,-727.46,0.00041095,60]
[340386921,1729157137143,-500.0,0.00041095,60]
[340386922,1729157137181,-500.0,0.00041095,60]
[340386923,1729157137218,-635.93,0.00041095,60]
[340386924,1729157137255,-543.82,0.00041095,60]
[340386925,1729157137290,-500.0,0.00041095,60]
[340386926,1729157137328,-924.64,0.00041095,60]
[340386927,1729157137366,-644.69,0.00041095,60]
[340386928,1729157137403,-500.0,0.00041095,60]
[340386929,1729157137439,-500.0,0.00041095,60]
[340386930,1729157137476,-731.08,0.00041095,60]
[340386931,1729157137514,-500.0,0.00041095,60]
[340386932,1729157137553,-512.67225946,0.00041369,60]
[340386933,1729157137592,-500.0,0.00041369,60]
[340386934,1729157137630,-909.04,0.00041369,60]
[340386935,1729157137669,-1630.73,0.00041369,60]
[340386936,1729157137707,-4082.49,0.00041369,60]
[340386937,1729157137743,-500.0,0.00041369,60]
[340386938,1729157137779,-500.0,0.00041369,60]